[Event "*** Titled Tuesday Blitz"]
[Site "Chess.com"]
[Date "2019.07.02"]
[Round "2"]
[White "jk13"]
[Black "Msb2"]
[Result "0-1"]
[WhiteElo "2601"]
[BlackElo "2870"]
[TimeControl "180+2"]
[EndTime "13:23:59 PDT"]
[Termination "Msb2 won by resignation"]

1. e4 {[%clk 0:03:01.9]} 1... c6 {[%clk 0:03:00.9]} 2. d3 {[%clk 0:02:59.8]}
2... d5 {[%clk 0:03:02.8]} 3. Qe2 {[%clk 0:03:01.3]} 3... dxe4 {[%clk
0:02:56.9]} 4. dxe4 {[%clk 0:03:02.2]} 4... e5 {[%clk 0:02:58]} 5. Nf3 {[%clk
0:03:03.9]} 5... Qc7 {[%clk 0:02:58.8]} 6. g3 {[%clk 0:03:05.4]} 6... Nf6 {[%clk
0:02:55.4]} 7. Bg2 {[%clk 0:03:06.8]} 7... Be7 {[%clk 0:02:57]} 8. O-O {[%clk
0:03:08.4]} 8... O-O {[%clk 0:02:58.6]} 9. c3 {[%clk 0:03:09.4]} 9... a5 {[%clk
0:02:58.3]} 10. a4 {[%clk 0:03:10.2]} 10... b6 {[%clk 0:02:56.3]} 11. Rd1 {[%clk
0:03:11.4]} 11... Ba6 {[%clk 0:02:57.4]} 12. Qe1 {[%clk 0:03:12.7]} 12... Nbd7
{[%clk 0:02:55.8]} 13. Nbd2 {[%clk 0:02:44.5]} 13... Nc5 {[%clk 0:02:56.1]} 14.
Bf1 {[%clk 0:02:46.1]} 14... Bxf1 {[%clk 0:02:53.6]} 15. Kxf1 {[%clk 0:02:46.8]}
15... Rad8 {[%clk 0:02:42.6]} 16. Nc4 {[%clk 0:02:22.8]} 16... Rxd1 {[%clk
0:02:21.4]} 17. Qxd1 {[%clk 0:02:24.7]} 17... Ncxe4 {[%clk 0:02:03.1]} 18. Ncxe5
{[%clk 0:02:22.4]} 18... Bc5 {[%clk 0:02:02.5]} 19. Nd3 {[%clk 0:02:04.3]} 19...
Qd7 {[%clk 0:01:51]} 20. Qe2 {[%clk 0:01:32.8]} 20... Qh3+ {[%clk 0:01:47.6]}
21. Kg1 {[%clk 0:01:27.6]} 21... Re8 {[%clk 0:01:46.1]} 22. Nxc5 {[%clk
0:01:02.6]} 22... Nxg3 {[%clk 0:01:46.3]} 23. Qxe8+ {[%clk 0:00:33.4]} 23...
Nxe8 {[%clk 0:01:48.2]} 24. hxg3 {[%clk 0:00:34.6]} 24... bxc5 {[%clk 0:01:49]}
25. Be3 {[%clk 0:00:35.9]} 25... Qf5 {[%clk 0:01:47.5]} 26. Nd2 {[%clk
0:00:33.2]} 26... Nf6 {[%clk 0:01:48.3]} 27. Nb3 {[%clk 0:00:33.2]} 27... Ng4
{[%clk 0:01:48]} 28. Bxc5 {[%clk 0:00:32.5]} 28... Qh5 {[%clk 0:01:49]} 29. Ra3
{[%clk 0:00:25.7]} 29... Qh2+ {[%clk 0:01:38.9]} 30. Kf1 {[%clk 0:00:26.7]}
30... Qh1+ {[%clk 0:01:39.1]} 31. Ke2 {[%clk 0:00:27.7]} 31... Qb1 {[%clk
0:01:39.8]} 32. Nxa5 {[%clk 0:00:19.2]} 32... Qe4+ {[%clk 0:01:34.5]} 33. Kd2
{[%clk 0:00:09.9]} 33... Qd5+ {[%clk 0:01:34.7]} 34. Bd4 {[%clk 0:00:11.2]}
34... c5 {[%clk 0:01:36]} 35. Rb3 {[%clk 0:00:07.4]} 35... h5 {[%clk 0:00:56.2]}
36. Rb5 {[%clk 0:00:08.9]} 36... Qa2 {[%clk 0:00:44.6]} 37. Bxc5 {[%clk
0:00:09]} 37... Qxa4 {[%clk 0:00:46.3]} 38. Rb8+ {[%clk 0:00:08.4]} 38... Kh7
{[%clk 0:00:47.2]} 39. Bb4 {[%clk 0:00:09.2]} 39... Nxf2 {[%clk 0:00:47.6]} 40.
Nc4 {[%clk 0:00:09.2]} 40... Qd1+ {[%clk 0:00:47.1]} 41. Ke3 {[%clk 0:00:09.9]}
41... Ng4+ {[%clk 0:00:48.2]} 42. Kf4 {[%clk 0:00:09.8]} 42... Qf1+ {[%clk
0:00:48]} 43. Kg5 {[%clk 0:00:09.5]} 43... Qxc4 {[%clk 0:00:49.6]} 0-1

[Event "*** Titled Tuesday Blitz"]
[Site "Chess.com"]
[Date "2019.07.02"]
[Round "2"]
[White "Orest_Vovk"]
[Black "Alex_Terzi"]
[Result "1/2-1/2"]
[WhiteElo "2310"]
[BlackElo "2444"]
[TimeControl "180+2"]
[EndTime "13:23:59 PDT"]
[Termination "Game drawn by repetition"]

1. h4 {[%clk 0:03:01.9]} 1... e5 {[%clk 0:02:48.8]} 2. h5 {[%clk 0:03:02.3]}
2... d5 {[%clk 0:02:49]} 3. h6 {[%clk 0:03:03]} 3... Nxh6 {[%clk 0:02:48.7]} 4.
d4 {[%clk 0:03:04.1]} 4... e4 {[%clk 0:02:45.9]} 5. Bxh6 {[%clk 0:03:05.5]} 5...
gxh6 {[%clk 0:02:47.1]} 6. e3 {[%clk 0:03:07]} 6... Bg7 {[%clk 0:02:46.8]} 7. c4
{[%clk 0:03:08.1]} 7... O-O {[%clk 0:02:32]} 8. Nc3 {[%clk 0:03:08.6]} 8... c6
{[%clk 0:02:22.5]} 9. Qb3 {[%clk 0:03:08.8]} 9... dxc4 {[%clk 0:02:16.4]} 10.
Bxc4 {[%clk 0:03:09.1]} 10... Qe7 {[%clk 0:02:10.5]} 11. a4 {[%clk 0:02:59.8]}
11... a5 {[%clk 0:02:07.7]} 12. Nge2 {[%clk 0:02:57.3]} 12... Bf5 {[%clk
0:02:02]} 13. Ng3 {[%clk 0:02:44.9]} 13... Bg6 {[%clk 0:02:03]} 14. Nh5 {[%clk
0:02:44.5]} 14... Na6 {[%clk 0:01:34.8]} 15. Nxg7 {[%clk 0:02:34.8]} 15... Kxg7
{[%clk 0:01:36.7]} 16. g3 {[%clk 0:02:11.5]} 16... Nb4 {[%clk 0:01:34.4]} 17.
Rh4 {[%clk 0:02:09.3]} 17... Rad8 {[%clk 0:01:26.2]} 18. Kf1 {[%clk 0:01:52.3]}
18... f5 {[%clk 0:01:06.2]} 19. Kg2 {[%clk 0:01:50.7]} 19... Bf7 {[%clk
0:01:06.2]} 20. Rah1 {[%clk 0:01:42.2]} 20... Rd6 {[%clk 0:01:06.5]} 21. Ne2
{[%clk 0:01:26.9]} 21... Nd3 {[%clk 0:00:58]} 22. Nf4 {[%clk 0:01:20.3]} 22...
Nxf4+ {[%clk 0:00:46.9]} 23. Rxf4 {[%clk 0:01:20.5]} 23... Bxc4 {[%clk
0:00:43.4]} 24. Qxc4 {[%clk 0:01:21]} 24... Rd5 {[%clk 0:00:34.8]} 25. Rh5
{[%clk 0:01:13.2]} 25... Rf6 {[%clk 0:00:32.9]} 26. Qb3 {[%clk 0:00:59.1]} 26...
Qb4 {[%clk 0:00:31.7]} 27. Qxb4 {[%clk 0:00:54.5]} 27... axb4 {[%clk 0:00:32.5]}
28. b3 {[%clk 0:00:56.3]} 28... Kg6 {[%clk 0:00:26.6]} 29. Rfh4 {[%clk
0:00:50.2]} 29... Kg7 {[%clk 0:00:26.9]} 30. Rh1 {[%clk 0:00:50.5]} 30... c5
{[%clk 0:00:24.1]} 31. dxc5 {[%clk 0:00:51.5]} 31... Rxc5 {[%clk 0:00:25.6]} 32.
Rd1 {[%clk 0:00:52.1]} 32... Rc3 {[%clk 0:00:24.8]} 33. Rd7+ {[%clk 0:00:51.8]}
33... Kg6 {[%clk 0:00:26.1]} 34. Rh1 {[%clk 0:00:50.4]} 34... Rxb3 {[%clk
0:00:26.8]} 35. Rxb7 {[%clk 0:00:51.2]} 35... Ra6 {[%clk 0:00:22.9]} 36. Rc1
{[%clk 0:00:44.9]} 36... Rc3 {[%clk 0:00:22.6]} 37. Rb1 {[%clk 0:00:38.4]} 37...
b3 {[%clk 0:00:19.5]} 38. R1xb3 {[%clk 0:00:35.3]} 38... Rxb3 {[%clk 0:00:21.4]}
39. Rxb3 {[%clk 0:00:36.2]} 39... Rxa4 {[%clk 0:00:23]} 40. Rb6+ {[%clk
0:00:37.8]} 40... Kg5 {[%clk 0:00:23.8]} 41. Rb7 {[%clk 0:00:39]} 41... Kg6
{[%clk 0:00:25]} 42. Rb6+ {[%clk 0:00:40.1]} 42... Kg5 {[%clk 0:00:25.8]} 43.
Rb7 {[%clk 0:00:39.4]} 43... Kg6 {[%clk 0:00:26.6]} 44. Rb6+ {[%clk 0:00:40.5]}
1/2-1/2

[Event "*** Titled Tuesday Blitz"]
[Site "Chess.com"]
[Date "2019.07.02"]
[Round "2"]
[White "yoolund"]
[Black "Alexander_Moskalenko"]
[Result "0-1"]
[WhiteElo "2600"]
[BlackElo "2855"]
[TimeControl "180+2"]
[EndTime "13:24:06 PDT"]
[Termination "Alexander_Moskalenko won by resignation"]

1. d4 {[%clk 0:03:01.9]} 1... d5 {[%clk 0:02:58.7]} 2. Nf3 {[%clk 0:03:01.5]}
2... c6 {[%clk 0:03:00.6]} 3. c4 {[%clk 0:03:02.8]} 3... Nf6 {[%clk 0:03:01.3]}
4. e3 {[%clk 0:03:03.8]} 4... Bg4 {[%clk 0:02:59.9]} 5. h3 {[%clk 0:03:03.4]}
5... Bxf3 {[%clk 0:02:58.4]} 6. Qxf3 {[%clk 0:03:05.3]} 6... e6 {[%clk
0:03:00.3]} 7. Nc3 {[%clk 0:03:05.6]} 7... Nbd7 {[%clk 0:03:01.6]} 8. Bd3 {[%clk
0:02:59.1]} 8... Bd6 {[%clk 0:02:55.7]} 9. O-O {[%clk 0:02:58.9]} 9... O-O
{[%clk 0:02:55.7]} 10. Rd1 {[%clk 0:02:53.9]} 10... Re8 {[%clk 0:02:52.3]} 11.
e4 {[%clk 0:02:36.7]} 11... dxe4 {[%clk 0:02:54.2]} 12. Nxe4 {[%clk 0:02:36.6]}
12... Nxe4 {[%clk 0:02:50.9]} 13. Bxe4 {[%clk 0:02:38.5]} 13... Bf8 {[%clk
0:02:46.3]} 14. Be3 {[%clk 0:02:29.5]} 14... g6 {[%clk 0:02:45.2]} 15. Rd2
{[%clk 0:02:22.2]} 15... Bg7 {[%clk 0:02:45.9]} 16. Rad1 {[%clk 0:02:22.8]}
16... Qa5 {[%clk 0:02:42.8]} 17. a3 {[%clk 0:02:20.6]} 17... Rad8 {[%clk
0:02:42.8]} 18. Qg3 {[%clk 0:01:45.2]} 18... a6 {[%clk 0:02:37.6]} 19. Qh4
{[%clk 0:01:11.8]} 19... Nf6 {[%clk 0:02:31.1]} 20. Bf3 {[%clk 0:01:10.8]} 20...
Nd7 {[%clk 0:02:25.9]} 21. Bg5 {[%clk 0:00:46]} 21... Rc8 {[%clk 0:02:26.1]} 22.
Bh6 {[%clk 0:00:46.7]} 22... Bxh6 {[%clk 0:02:24.1]} 23. Qxh6 {[%clk 0:00:48.6]}
23... Qf5 {[%clk 0:02:20.2]} 24. Bg4 {[%clk 0:00:41.8]} 24... Qf6 {[%clk
0:02:20.1]} 25. d5 {[%clk 0:00:38.3]} 25... cxd5 {[%clk 0:02:20.1]} 26. cxd5
{[%clk 0:00:40.2]} 26... Nf8 {[%clk 0:02:19.3]} 27. dxe6 {[%clk 0:00:35.4]}
27... Nxe6 {[%clk 0:02:21.2]} 28. Bxe6 {[%clk 0:00:35.5]} 28... Rxe6 {[%clk
0:02:12.6]} 29. g3 {[%clk 0:00:32.7]} 29... Rce8 {[%clk 0:02:10.8]} 30. Qf4
{[%clk 0:00:23.8]} 30... Qxf4 {[%clk 0:02:09.7]} 31. gxf4 {[%clk 0:00:25.7]}
31... Rf6 {[%clk 0:02:11.1]} 32. Rd4 {[%clk 0:00:25.4]} 32... Re2 {[%clk
0:02:09]} 33. Rb4 {[%clk 0:00:26.1]} 33... b5 {[%clk 0:02:08.8]} 34. Kg2 {[%clk
0:00:21.3]} 34... Rc6 {[%clk 0:02:08.4]} 35. Rf1 {[%clk 0:00:14.2]} 35... Rcc2
{[%clk 0:02:07.4]} 36. a4 {[%clk 0:00:10.4]} 36... Rxb2 {[%clk 0:02:08.1]} 37.
Rxb2 {[%clk 0:00:11.5]} 37... Rxb2 {[%clk 0:02:10]} 38. axb5 {[%clk 0:00:08.7]}
38... axb5 {[%clk 0:02:11.9]} 39. Kf3 {[%clk 0:00:09.8]} 39... Rb3+ {[%clk
0:02:10.9]} 40. Kg2 {[%clk 0:00:05.8]} 40... Kg7 {[%clk 0:02:07.5]} 41. Rc1
{[%clk 0:00:04.7]} 41... b4 {[%clk 0:02:01.6]} 42. Rc5 {[%clk 0:00:05.7]} 42...
Rc3 {[%clk 0:02:01.2]} 43. Rb5 {[%clk 0:00:06.6]} 43... b3 {[%clk 0:02:02.5]}
44. h4 {[%clk 0:00:06.8]} 44... Kf6 {[%clk 0:01:59.5]} 45. h5 {[%clk 0:00:06.1]}
45... gxh5 {[%clk 0:02:01.3]} 46. Rxh5 {[%clk 0:00:05.9]} 46... b2 {[%clk
0:02:02.5]} 47. Rb5 {[%clk 0:00:06.6]} 47... Rc2 {[%clk 0:02:03.8]} 48. Kf3
{[%clk 0:00:08]} 48... h5 {[%clk 0:02:04.6]} 49. Kg3 {[%clk 0:00:08.4]} 49...
Ke6 {[%clk 0:02:04.1]} 50. f3 {[%clk 0:00:04.7]} 50... Kd6 {[%clk 0:01:59.9]}
51. Kh4 {[%clk 0:00:05.9]} 51... Kc6 {[%clk 0:02:01.2]} 52. Rb8 {[%clk
0:00:06.6]} 52... f6 {[%clk 0:01:49.7]} 53. Kxh5 {[%clk 0:00:07.2]} 53... Rc5+
{[%clk 0:01:51.2]} 0-1

[Event "*** Titled Tuesday Blitz"]
[Site "Chess.com"]
[Date "2019.07.02"]
[Round "2"]
[White "GMsKoRPioN"]
[Black "Blitzstream"]
[Result "0-1"]
[WhiteElo "2562"]
[BlackElo "2784"]
[TimeControl "180+2"]
[EndTime "13:24:07 PDT"]
[Termination "Blitzstream won by resignation"]

1. d4 {[%clk 0:02:59.3]} 1... d5 {[%clk 0:03:00.8]} 2. c4 {[%clk 0:03:00.4]}
2... c6 {[%clk 0:03:02.1]} 3. Nf3 {[%clk 0:03:01.9]} 3... Nf6 {[%clk 0:03:03]}
4. Nc3 {[%clk 0:03:03.3]} 4... e6 {[%clk 0:03:04.5]} 5. Bg5 {[%clk 0:03:03.8]}
5... h6 {[%clk 0:03:05.6]} 6. Bh4 {[%clk 0:03:03.7]} 6... dxc4 {[%clk
0:03:05.9]} 7. e4 {[%clk 0:03:05.2]} 7... g5 {[%clk 0:03:07]} 8. Bg3 {[%clk
0:03:06.7]} 8... b5 {[%clk 0:03:08.7]} 9. Be2 {[%clk 0:03:07.5]} 9... Bb7 {[%clk
0:03:06.5]} 10. O-O {[%clk 0:03:07.4]} 10... Nbd7 {[%clk 0:03:07.8]} 11. h4
{[%clk 0:03:07]} 11... b4 {[%clk 0:03:04.3]} 12. Na4 {[%clk 0:02:52.7]} 12...
Nxe4 {[%clk 0:03:03.9]} 13. Bxc4 {[%clk 0:02:43.6]} 13... g4 {[%clk 0:02:33.5]}
14. Ne5 {[%clk 0:02:39.2]} 14... Nxg3 {[%clk 0:02:34.4]} 15. fxg3 {[%clk
0:02:41.1]} 15... Nxe5 {[%clk 0:02:34.7]} 16. dxe5 {[%clk 0:02:43]} 16... Qxd1
{[%clk 0:02:34.3]} 17. Raxd1 {[%clk 0:02:44.1]} 17... Be7 {[%clk 0:02:17.1]} 18.
Rf4 {[%clk 0:02:38.1]} 18... h5 {[%clk 0:02:15]} 19. Rfd4 {[%clk 0:02:31.1]}
19... Rd8 {[%clk 0:02:15.3]} 20. Rxd8+ {[%clk 0:02:29.4]} 20... Bxd8 {[%clk
0:02:16.2]} 21. Kf1 {[%clk 0:02:17.8]} 21... Bc7 {[%clk 0:01:56.6]} 22. Nc5
{[%clk 0:02:17.5]} 22... Bc8 {[%clk 0:01:57.5]} 23. Nd3 {[%clk 0:01:40.8]} 23...
a5 {[%clk 0:01:44.8]} 24. b3 {[%clk 0:01:39.5]} 24... Ke7 {[%clk 0:01:44.3]} 25.
Ke2 {[%clk 0:01:40.7]} 25... Rd8 {[%clk 0:01:43.9]} 26. Nf4 {[%clk 0:01:31.8]}
26... Rxd1 {[%clk 0:01:42.6]} 27. Kxd1 {[%clk 0:01:33.6]} 27... Bxe5 {[%clk
0:01:42.3]} 28. Nxh5 {[%clk 0:01:35.1]} 28... c5 {[%clk 0:01:24]} 29. Ke2 {[%clk
0:01:32.2]} 29... Bb7 {[%clk 0:01:23.6]} 30. Kf2 {[%clk 0:01:29.2]} 30... Be4
{[%clk 0:01:18.8]} 31. Nf4 {[%clk 0:01:26.8]} 31... Bb1 {[%clk 0:01:05.4]} 32.
h5 {[%clk 0:01:09.6]} 32... Bxa2 {[%clk 0:01:03.6]} 33. h6 {[%clk 0:01:09.6]}
33... a4 {[%clk 0:01:01.2]} 34. Nd3 {[%clk 0:01:04]} 34... Bd4+ {[%clk
0:01:00.8]} 35. Ke2 {[%clk 0:01:05.5]} 35... Bxb3 {[%clk 0:00:53.8]} 36. Bxb3
{[%clk 0:01:02.7]} 36... axb3 {[%clk 0:00:54.9]} 37. Kd2 {[%clk 0:01:01.1]}
37... c4 {[%clk 0:00:40.3]} 38. Nxb4 {[%clk 0:00:57.3]} 38... c3+ {[%clk
0:00:41]} 39. Kd3 {[%clk 0:00:58.4]} 39... c2 {[%clk 0:00:39.6]} 40. Nxc2 {[%clk
0:00:47.9]} 40... bxc2 {[%clk 0:00:40.7]} 41. Kxc2 {[%clk 0:00:49.8]} 41... Kf6
{[%clk 0:00:42.1]} 42. Kd3 {[%clk 0:00:50.8]} 42... Be5 {[%clk 0:00:41.8]} 43.
h7 {[%clk 0:00:52.2]} 43... Kg7 {[%clk 0:00:42.6]} 44. Ke4 {[%clk 0:00:53.8]}
44... Bxg3 {[%clk 0:00:43.8]} 45. Ke3 {[%clk 0:00:54.5]} 45... f5 {[%clk
0:00:44.5]} 46. Kd4 {[%clk 0:00:54.4]} 46... Kxh7 {[%clk 0:00:45.7]} 47. Kc5
{[%clk 0:00:56.3]} 47... Kg6 {[%clk 0:00:47.2]} 48. Kd4 {[%clk 0:00:58.1]} 48...
Kg5 {[%clk 0:00:48.6]} 49. Ke3 {[%clk 0:01:00]} 49... Bd6 {[%clk 0:00:49.6]} 50.
Ke2 {[%clk 0:01:01.9]} 50... Kf4 {[%clk 0:00:51.1]} 51. Kf2 {[%clk 0:01:03.1]}
51... Bc5+ {[%clk 0:00:52.7]} 52. Kf1 {[%clk 0:01:04.2]} 52... Kg3 {[%clk
0:00:54.3]} 53. Ke2 {[%clk 0:01:05.1]} 53... Kxg2 {[%clk 0:00:56.2]} 54. Ke1
{[%clk 0:01:06.6]} 54... f4 {[%clk 0:00:57.8]} 55. Ke2 {[%clk 0:01:08.5]} 55...
f3+ {[%clk 0:00:59.7]} 0-1

[Event "*** Titled Tuesday Blitz"]
[Site "Chess.com"]
[Date "2019.07.02"]
[Round "2"]
[White "Andrei_Belozerov"]
[Black "playerorkinyo"]
[Result "1-0"]
[WhiteElo "2547"]
[BlackElo "2409"]
[TimeControl "180+2"]
[EndTime "13:24:09 PDT"]
[Termination "Andrei_Belozerov won by resignation"]

1. e4 {[%clk 0:02:59.6]} 1... c6 {[%clk 0:03:00.5]} 2. d4 {[%clk 0:02:59.7]}
2... d5 {[%clk 0:03:02]} 3. exd5 {[%clk 0:03:00.1]} 3... cxd5 {[%clk 0:03:03.2]}
4. Bd3 {[%clk 0:03:01.5]} 4... Nc6 {[%clk 0:03:04.4]} 5. c3 {[%clk 0:03:03]}
5... Nf6 {[%clk 0:03:05.7]} 6. Bf4 {[%clk 0:03:03.1]} 6... Bg4 {[%clk
0:03:06.8]} 7. Qb3 {[%clk 0:03:03]} 7... e5 {[%clk 0:03:08.3]} 8. dxe5 {[%clk
0:02:56]} 8... Nh5 {[%clk 0:03:02.1]} 9. Bg3 {[%clk 0:02:41.2]} 9... Nxg3 {[%clk
0:03:00.9]} 10. hxg3 {[%clk 0:02:41.3]} 10... Nxe5 {[%clk 0:03:02.5]} 11. Bb5+
{[%clk 0:02:42]} 11... Nc6 {[%clk 0:03:00.3]} 12. Nf3 {[%clk 0:02:39.7]} 12...
a6 {[%clk 0:02:16.9]} 13. Be2 {[%clk 0:02:32.5]} 13... Qd7 {[%clk 0:02:09.9]}
14. Nbd2 {[%clk 0:02:31.8]} 14... Bc5 {[%clk 0:02:10.5]} 15. O-O {[%clk
0:02:19.7]} 15... O-O {[%clk 0:02:10.2]} 16. Qc2 {[%clk 0:02:19.3]} 16... Rfd8
{[%clk 0:01:50.7]} 17. Nb3 {[%clk 0:02:12.6]} 17... Ba7 {[%clk 0:01:48.7]} 18.
Ng5 {[%clk 0:02:10.8]} 18... Bxe2 {[%clk 0:01:40.5]} 19. Qxh7+ {[%clk
0:02:08.4]} 19... Kf8 {[%clk 0:01:41.4]} 20. Rfe1 {[%clk 0:02:09.3]} 20... Qg4
{[%clk 0:01:29.4]} 21. Qh8+ {[%clk 0:02:09.2]} 21... Ke7 {[%clk 0:01:30.1]} 22.
Qxg7 {[%clk 0:02:10.4]} 22... Kd7 {[%clk 0:00:59.8]} 23. Qxf7+ {[%clk
0:02:02.7]} 23... Kc8 {[%clk 0:00:50.3]} 24. Ne6 {[%clk 0:02:00.2]} 24... Rd7
{[%clk 0:00:35.6]} 25. Qe8+ {[%clk 0:01:54.7]} 25... Nd8 {[%clk 0:00:35.9]} 26.
Nxd8 {[%clk 0:01:55.6]} 26... Rxd8 {[%clk 0:00:25.3]} 27. Qxe2 {[%clk
0:01:55.8]} 27... Qxg3 {[%clk 0:00:26.8]} 28. Nd4 {[%clk 0:01:55.5]} 28... Bxd4
{[%clk 0:00:23.6]} 29. cxd4 {[%clk 0:01:56]} 29... Qg7 {[%clk 0:00:21.3]} 30.
Rac1+ {[%clk 0:01:55.8]} 30... Kb8 {[%clk 0:00:22.4]} 31. Qe5+ {[%clk
0:01:57.1]} 31... Qxe5 {[%clk 0:00:23.9]} 32. Rxe5 {[%clk 0:01:58.4]} 32... Ka7
{[%clk 0:00:25.4]} 33. Rc5 {[%clk 0:01:58.8]} 33... Rac8 {[%clk 0:00:26.8]} 34.
Rxc8 {[%clk 0:01:58.2]} 34... Rxc8 {[%clk 0:00:28.7]} 35. Rxd5 {[%clk
0:01:53.1]} 35... Rc2 {[%clk 0:00:28.6]} 36. f4 {[%clk 0:01:52.3]} 36... Rxb2
{[%clk 0:00:27.9]} 37. a4 {[%clk 0:01:53.1]} 37... Kb6 {[%clk 0:00:25.3]} 38. f5
{[%clk 0:01:50.4]} 38... Kc6 {[%clk 0:00:25.3]} 39. Re5 {[%clk 0:01:47.7]} 39...
Rb4 {[%clk 0:00:22]} 40. f6 {[%clk 0:01:44.2]} 40... Rxd4 {[%clk 0:00:22.3]} 41.
Rf5 {[%clk 0:01:45.1]} 41... Rd8 {[%clk 0:00:23]} 42. g4 {[%clk 0:01:45.9]}
42... b5 {[%clk 0:00:23.6]} 43. axb5+ {[%clk 0:01:45.9]} 43... axb5 {[%clk
0:00:25.5]} 44. g5 {[%clk 0:01:46.5]} 44... Kd7 {[%clk 0:00:25.7]} 45. Re5
{[%clk 0:01:44.5]} 45... Rf8 {[%clk 0:00:24.6]} 46. Kf2 {[%clk 0:01:41]} 46...
b4 {[%clk 0:00:23.9]} 47. Kf3 {[%clk 0:01:40.6]} 47... b3 {[%clk 0:00:23]} 48.
Rb5 {[%clk 0:01:40.8]} 48... Ke6 {[%clk 0:00:21.9]} 49. Kf4 {[%clk 0:01:41.4]}
49... Rc8 {[%clk 0:00:21.9]} 50. Rxb3 {[%clk 0:01:28]} 50... Rc4+ {[%clk
0:00:22]} 51. Kg3 {[%clk 0:01:28.9]} 51... Kf7 {[%clk 0:00:14.3]} 52. Rb7+
{[%clk 0:01:28.6]} 52... Kg6 {[%clk 0:00:15.1]} 53. Rg7+ {[%clk 0:01:29.2]} 1-0

[Event "*** Titled Tuesday Blitz"]
[Site "Chess.com"]
[Date "2019.07.02"]
[Round "2"]
[White "LisikValera"]
[Black "Etoilegeniale"]
[Result "1-0"]
[WhiteElo "2422"]
[BlackElo "2446"]
[TimeControl "180+2"]
[EndTime "13:24:14 PDT"]
[Termination "LisikValera won on time"]

1. d4 {[%clk 0:03:01.9]} 1... d5 {[%clk 0:03:00.2]} 2. Bf4 {[%clk 0:03:02]} 2...
Nf6 {[%clk 0:03:00.2]} 3. e3 {[%clk 0:03:03]} 3... e6 {[%clk 0:03:01]} 4. Nd2
{[%clk 0:03:01]} 4... c5 {[%clk 0:03:01.8]} 5. c3 {[%clk 0:03:01.5]} 5... Nc6
{[%clk 0:03:02.5]} 6. Bd3 {[%clk 0:03:01.4]} 6... Bd6 {[%clk 0:03:02.5]} 7. Bxd6
{[%clk 0:03:01.1]} 7... Qxd6 {[%clk 0:03:03.3]} 8. f4 {[%clk 0:03:03]} 8... O-O
{[%clk 0:02:57.7]} 9. Ngf3 {[%clk 0:03:03.1]} 9... b6 {[%clk 0:02:55.2]} 10. a3
{[%clk 0:03:02.4]} 10... a5 {[%clk 0:02:54]} 11. Qe2 {[%clk 0:03:02.1]} 11...
Bb7 {[%clk 0:02:47.2]} 12. O-O {[%clk 0:03:00.6]} 12... Ne7 {[%clk 0:02:48.2]}
13. Ne5 {[%clk 0:03:00]} 13... Ne4 {[%clk 0:02:45.7]} 14. Nxe4 {[%clk
0:02:50.1]} 14... dxe4 {[%clk 0:02:46.6]} 15. Bb5 {[%clk 0:02:49.5]} 15... cxd4
{[%clk 0:02:29.9]} 16. cxd4 {[%clk 0:02:49]} 16... Nd5 {[%clk 0:02:22.1]} 17.
Rac1 {[%clk 0:02:43]} 17... Rfc8 {[%clk 0:02:20.4]} 18. h3 {[%clk 0:02:27.2]}
18... g6 {[%clk 0:02:09.5]} 19. g4 {[%clk 0:02:12.3]} 19... Rc7 {[%clk
0:01:54.2]} 20. g5 {[%clk 0:02:05.4]} 20... Rac8 {[%clk 0:01:51.1]} 21. Qd2
{[%clk 0:02:05.3]} 21... Kg7 {[%clk 0:01:20.5]} 22. h4 {[%clk 0:02:03.3]} 22...
Ne7 {[%clk 0:01:13.2]} 23. h5 {[%clk 0:01:53.3]} 23... gxh5 {[%clk 0:00:56.6]}
24. Kf2 {[%clk 0:01:54]} 24... Nf5 {[%clk 0:00:52.1]} 25. a4 {[%clk 0:01:27.5]}
25... Qb4 {[%clk 0:00:50.1]} 26. Qxb4 {[%clk 0:01:26.1]} 26... axb4 {[%clk
0:00:50.4]} 27. Rxc7 {[%clk 0:01:25]} 27... Rxc7 {[%clk 0:00:50.8]} 28. Nc4
{[%clk 0:01:23.8]} 28... Bd5 {[%clk 0:00:44.3]} 29. b3 {[%clk 0:01:24.6]} 29...
Bxc4 {[%clk 0:00:30.9]} 30. bxc4 {[%clk 0:01:19.6]} 30... Nd6 {[%clk 0:00:31.6]}
31. Rc1 {[%clk 0:01:17.3]} 31... b3 {[%clk 0:00:20.7]} 32. c5 {[%clk 0:01:15.1]}
32... Nxb5 {[%clk 0:00:20.8]} 33. axb5 {[%clk 0:01:15.1]} 33... bxc5 {[%clk
0:00:20.2]} 34. b6 {[%clk 0:01:13.7]} 34... Rc6 {[%clk 0:00:18.8]} 35. dxc5
{[%clk 0:01:12.4]} 35... b2 {[%clk 0:00:17.7]} 36. Rb1 {[%clk 0:01:13.3]} 36...
Rxc5 {[%clk 0:00:18.5]} 37. Rxb2 {[%clk 0:01:14.3]} 37... Rc8 {[%clk 0:00:19.3]}
38. b7 {[%clk 0:01:14.3]} 38... Rb8 {[%clk 0:00:20.6]} 39. Kg3 {[%clk
0:01:14.5]} 39... Kg6 {[%clk 0:00:20]} 40. Rb6 {[%clk 0:01:07.7]} 40... h6
{[%clk 0:00:20.9]} 41. Kh4 {[%clk 0:01:04.5]} 41... hxg5+ {[%clk 0:00:21.9]} 42.
fxg5 {[%clk 0:01:05.3]} 42... Kf5 {[%clk 0:00:23]} 43. Rb5+ {[%clk 0:01:06.4]}
43... e5 {[%clk 0:00:24]} 44. Rb6 {[%clk 0:00:53.5]} 1-0